bitfinex/quotes_BTCUSD_20240723
["timestamp","ask_amount","ask_price","bid_price","bid_amount"]
[1721716363786,0.83545004,66713.0,66712.0,0.01749]
[1721716364116,0.9476602,66713.0,66712.0,0.01749]
[1721716364382,0.81057783,66713.0,66712.0,0.01749]
[1721716364616,0.92278799,66713.0,66712.0,0.01749]
[1721716365058,0.81057783,66713.0,66712.0,0.01749]
[1721716365559,0.75950887,66713.0,66712.0,0.01749]
[1721716365764,0.81059835,66713.0,66712.0,0.01749]
[1721716365958,1.097661,66713.0,66712.0,0.01749]
[1721716366130,1.98152672,66713.0,66712.0,0.01749]
[1721716366329,1.89679481,66713.0,66712.0,0.01749]
[1721716366532,2.28931892,66713.0,66712.0,0.01749]
[1721716366731,2.2394935,66713.0,66712.0,0.01749]
[1721716366937,2.18997778,66713.0,66712.0,0.01749]
[1721716367139,2.23997778,66713.0,66712.0,0.01749]
[1721716367498,2.15432393,66713.0,66712.0,0.00449]
[1721716367618,2.15932393,66713.0,66712.0,0.00449]
[1721716367826,1.70446128,66713.0,66712.0,0.00449]
[1721716368050,1.40467028,66713.0,66712.0,0.00449]
[1721716368270,1.10487928,66713.0,66712.0,0.00449]
[1721716368474,1.04207928,66713.0,66712.0,0.00449]
[1721716368678,1.04207928,66713.0,66699.0,0.362353]
[1721716368679,0.00719187,66707.0,66706.0,0.14991]
[1721716368881,0.10697327,66707.0,66706.0,0.512234]
[1721716369124,0.05123117,66707.0,66706.0,0.0625]
[1721716369344,0.08984944,66707.0,66706.0,0.212411]
[1721716369555,0.14129259,66707.0,66706.0,0.212411]
[1721716369764,0.14129259,66707.0,66706.0,0.512234]
[1721716370121,0.14129259,66707.0,66706.0,0.212411]
[1721716370356,0.05144315,66707.0,66706.0,0.512234]
[1721716370621,0.05144315,66707.0,66706.0,0.96107691]
[1721716370820,0.06217833,66707.0,66706.0,0.98207691]
[1721716371029,0.06217921,66707.0,66706.0,0.98207691]
[1721716371436,0.01723452,66707.0,66706.0,0.98207691]
[1721716371821,0.0621881,66707.0,66706.0,0.98207691]
[1721716371993,0.0631881,66707.0,66706.0,0.99007691]
[1721716372209,0.002,66707.0,66706.0,0.99007691]
[1721716372529,0.01825807,66707.0,66706.0,0.98207691]
[1721716372730,0.01825807,66707.0,66706.0,0.99007691]
[1721716372953,0.01825807,66707.0,66706.0,0.98207691]
[1721716373283,0.01925807,66707.0,66706.0,0.98607691]
[1721716373514,0.01825807,66707.0,66706.0,0.98607691]
[1721716374137,0.01925807,66707.0,66706.0,0.98607691]
[1721716374906,0.01925807,66707.0,66706.0,1.46824831]
[1721716375168,0.01925807,66707.0,66706.0,1.49124831]
[1721716375301,0.01928425,66707.0,66706.0,1.49123999]
[1721716378136,0.002,66707.0,66706.0,1.36669991]
[1721716378337,0.01920734,66707.0,66706.0,1.49124223]
[1721716378551,0.01920734,66707.0,66706.0,1.16841923]
[1721716378753,0.0264124,66707.0,66706.0,0.516234]
[1721716378965,0.0264124,66707.0,66706.0,0.153911]
[1721716379166,0.09182588,66707.0,66706.0,0.004]
[1721716379368,0.24173488,66707.0,66706.0,0.004]
[1721716379575,0.04688009,66707.0,66706.0,0.004]
[1721716379787,0.04688009,66707.0,66706.0,0.153911]
[1721716379996,0.04688009,66707.0,66706.0,0.004]
[1721716380199,0.04688009,66707.0,66705.0,0.149912]
[1721716380200,0.04488009,66707.0,66705.0,0.149912]
[1721716380401,0.06216857,66706.0,66705.0,0.149912]
[1721716380809,0.06216857,66706.0,66705.0,0.449739]
[1721716381010,0.04594799,66707.0,66706.0,0.589434]
[1721716381282,0.06315028,66707.0,66706.0,0.889257]
[1721716381435,0.06315028,66707.0,66706.0,0.89234394]
[1721716381860,0.06215028,66707.0,66706.0,0.89234394]
[1721716382062,0.06315028,66707.0,66706.0,0.89234394]
[1721716382413,0.06415028,66707.0,66706.0,0.90034394]
[1721716382639,0.06215028,66707.0,66706.0,0.89234394]
[1721716383056,0.06415028,66707.0,66706.0,0.90034394]
[1721716383282,0.002,66707.0,66706.0,0.90034394]
[1721716383533,0.002,66707.0,66706.0,0.52122094]
[1721716383534,0.06416768,66707.0,66706.0,0.52122094]
[1721716385036,0.06216768,66707.0,66706.0,0.45282094]
[1721716385651,0.06416768,66707.0,66706.0,0.46082094]
[1721716386484,0.01721947,66707.0,66706.0,0.45282094]
[1721716386688,0.06316799,66707.0,66706.0,0.46082094]
[1721716386892,0.06416799,66707.0,66706.0,0.46082094]
[1721716387724,0.09827309,66707.0,66706.0,0.46082094]
[1721716388128,0.06416799,66707.0,66706.0,0.46082094]
[1721716388358,0.01921947,66707.0,66706.0,0.46082094]
[1721716389365,0.01921947,66707.0,66706.0,0.16099794]
[1721716389604,0.01920942,66707.0,66706.0,0.46082094]
[1721716390033,0.002,66707.0,66706.0,0.46082094]
[1721716390179,0.01917966,66707.0,66706.0,0.01108694]
[1721716390555,0.26114083,66707.0,66706.0,0.01108694]
[1721716390964,0.17067153,66707.0,66706.0,0.01108694]
[1721716391397,0.10767153,66707.0,66706.0,0.01108694]
[1721716391602,0.10767153,66707.0,66706.0,0.16099794]
[1721716391742,0.10767153,66707.0,66706.0,0.01108694]
[1721716392152,0.11141948,66707.0,66706.0,0.01108694]
[1721716392350,0.11141948,66707.0,66706.0,0.008]
[1721716392351,1.29384692,66707.0,66706.0,0.008]
[1721716392590,1.25611747,66707.0,66706.0,0.008]
[1721716392876,1.25611368,66707.0,66706.0,0.008]
[1721716393074,1.25511368,66707.0,66706.0,0.008]
[1721716393410,1.40207633,66707.0,66706.0,0.008]
[1721716393613,0.149924,66701.0,66697.0,0.002794]
[1721716393813,0.149924,66701.0,66696.0,0.149933]
[1721716393814,0.06742815,66699.0,66696.0,0.149933]
[1721716393966,0.0449521,66697.0,66696.0,0.149933]
[1721716394170,0.06206729,66697.0,66696.0,0.149933]
[1721716394367,0.06925916,66697.0,66695.0,0.009273]
[1721716394572,0.06206729,66696.0,66695.0,0.009273]
[1721716394771,0.15954405,66696.0,66695.0,0.009273]
[1721716395359,0.16673592,66696.0,66695.0,0.009273]
[1721716395560,0.16665869,66696.0,66695.0,0.159209]
[1721716395804,0.09165562,66696.0,66695.0,0.009273]
[1721716396267,0.02523844,66696.0,66695.0,0.01836956]
[1721716396457,0.02623844,66696.0,66695.0,0.01836956]
[1721716396605,0.10817327,66696.0,66695.0,0.01836956]
[1721716396810,0.70292388,66696.0,66695.0,0.015273]
[1721716397021,0.95480154,66696.0,66695.0,0.01836956]
[1721716397209,0.95480154,66696.0,66695.0,0.015273]
[1721716397210,1.0671635,66696.0,66695.0,0.015273]
[1721716397568,0.7952524,66696.0,66695.0,0.015273]
[1721716397846,0.65118493,66696.0,66695.0,0.015273]
[1721716398048,0.06018293,66696.0,66695.0,0.015273]
[1721716398271,0.15004729,66696.0,66695.0,0.015273]
[1721716398507,0.15004729,66696.0,66695.0,0.01838212]
[1721716398659,0.15000261,66696.0,66695.0,0.01838212]
[1721716399243,0.06015323,66696.0,66695.0,0.01838212]
[1721716399453,0.21008723,66696.0,66695.0,0.01769547]
[1721716400264,0.17611194,66696.0,66695.0,0.01769547]
[1721716400466,0.02617794,66696.0,66695.0,0.01769547]
[1721716401313,0.09354148,66696.0,66695.0,0.01769547]
[1721716401720,0.09349543,66696.0,66695.0,0.01769547]
[1721716402152,0.24342988,66696.0,66695.0,0.01769547]
[1721716402773,0.36226888,66696.0,66695.0,0.01769547]
[1721716404170,0.24342988,66696.0,66695.0,0.01769547]
[1721716404751,0.24340735,66696.0,66695.0,0.01769547]
[1721716405378,0.17604381,66696.0,66695.0,0.01769547]
[1721716405578,0.17604381,66696.0,66695.0,0.01458635]
[1721716405874,0.17604381,66696.0,66695.0,0.01769937]
[1721716406251,0.26334381,66696.0,66695.0,0.01458635]
[1721716406467,0.39091246,66696.0,66695.0,0.01769937]
[1721716406875,0.458276,66696.0,66695.0,0.01769937]
[1721716407095,0.18077335,66696.0,66695.0,0.01769937]
[1721716407294,0.26334381,66696.0,66695.0,0.01769937]
[1721716407651,0.24642587,66696.0,66695.0,0.01769937]
[1721716407872,0.65289632,66696.0,66695.0,0.01769937]
[1721716408246,1.13199254,66696.0,66695.0,0.01458635]
[1721716408485,1.42594153,66696.0,66695.0,0.01458635]
[1721716408891,1.42494153,66696.0,66695.0,0.01458635]
[1721716409108,1.12507353,66696.0,66695.0,0.00858635]
[1721716409628,1.12407353,66696.0,66695.0,0.00958635]
[1721716410236,1.12507353,66696.0,66695.0,0.01158635]
[1721716410454,1.21482906,66696.0,66695.0,0.01158635]
[1721716410610,1.12507353,66696.0,66695.0,0.01158635]
[1721716410814,1.21482906,66696.0,66695.0,0.01158635]
[1721716411369,1.21382906,66696.0,66695.0,0.01158635]
[1721716411595,1.21382906,66696.0,66695.0,0.00858635]
[1721716411931,1.21382906,66696.0,66695.0,0.01058635]
[1721716413867,1.21391272,66696.0,66695.0,0.01058635]
[1721716414327,1.12418705,66696.0,66695.0,0.01058635]
[1721716415283,0.05795596,66696.0,66695.0,0.16052235]
[1721716415483,0.01688443,66696.0,66695.0,0.3106914]
[1721716415680,0.08973486,66701.0,66695.0,0.6020274]
[1721716415681,0.04486125,66701.0,66695.0,0.6020274]
[1721716415882,0.01689485,66700.0,66699.0,0.510381]
[1721716416112,0.01700469,66701.0,66699.0,0.50747391]
[1721716416312,0.05099659,66701.0,66700.0,0.149925]
[1721716416642,0.05099659,66701.0,66700.0,0.15307381]
[1721716416855,0.00719187,66704.0,66703.0,0.149918]
[1721716417043,0.03404347,66704.0,66703.0,0.14701991]
[1721716417191,0.01705601,66704.0,66703.0,0.59992227]
[1721716417386,0.01705525,66704.0,66703.0,0.45000427]
[1721716417587,0.00719187,66706.0,66704.0,0.149916]
[1721716417827,0.043978,66705.0,66704.0,0.15271]
[1721716418142,0.043978,66705.0,66704.0,0.449748]
[1721716418349,0.01705539,66705.0,66704.0,0.449748]
[1721716418567,0.04127247,66707.0,66706.0,0.064]
[1721716418740,0.02429172,66707.0,66706.0,0.213911]
[1721716419146,0.02429172,66707.0,66706.0,0.513734]
[1721716419325,0.01709985,66707.0,66706.0,0.213911]
[1721716419528,0.01709451,66707.0,66706.0,0.21101991]
[1721716419776,0.00084,66712.0,66711.0,0.4497]
[1721716419947,0.01798013,66712.0,66711.0,0.59671991]
[1721716421014,0.031795,66712.0,66711.0,0.14701991]
[1721716421385,0.031795,66712.0,66711.0,0.29691991]
[1721716422013,0.031795,66712.0,66711.0,0.30491991]
[1721716422214,0.032795,66712.0,66711.0,0.30491991]
[1721716422896,0.03374866,66712.0,66711.0,0.30491991]
[1721716423657,0.01993379,66712.0,66711.0,0.30491991]
[1721716425011,0.01993379,66712.0,66711.0,0.15501991]
[1721716425898,0.00284,66712.0,66711.0,0.30491991]
[1721716426307,0.01989693,66712.0,66711.0,0.30803684]
[1721716426715,0.10057822,66712.0,66711.0,0.01111693]
[1721716426888,0.13062615,66712.0,66711.0,0.01111693]
[1721716427252,0.2842718,66712.0,66711.0,0.01111693]
[1721716427494,0.72212015,66712.0,66711.0,0.01111693]
[1721716427685,0.72212015,66712.0,66711.0,0.008]
[1721716427686,0.28523473,66712.0,66711.0,0.008]
[1721716427890,0.28523473,66712.0,66711.0,0.01111693]
[1721716427891,0.58503073,66712.0,66711.0,0.01111693]
[1721716428090,0.28523473,66712.0,66711.0,0.008]
[1721716428925,0.5679738,66712.0,66711.0,0.008]
[1721716429179,0.58499985,66712.0,66711.0,0.008]
[1721716432124,0.5679738,66712.0,66711.0,0.008]
[1721716432327,0.20698836,66712.0,66711.0,0.008]
[1721716432716,0.05709036,66712.0,66711.0,0.01111693]
[1721716432858,0.02704243,66712.0,66711.0,0.01111693]
[1721716433525,0.02704243,66712.0,66711.0,0.16101693]
[1721716433746,0.01985056,66712.0,66711.0,0.16101693]
[1721716433919,0.02704243,66712.0,66711.0,0.16101693]
[1721716434120,0.02704243,66712.0,66711.0,0.01111693]
[1721716434321,0.06501129,66712.0,66711.0,0.16101693]
[1721716434901,0.02704243,66712.0,66711.0,0.16101693]
[1721716435109,0.02706487,66712.0,66711.0,0.16101693]
[1721716435309,0.02706487,66712.0,66711.0,0.01111693]
[1721716438295,0.02703405,66712.0,66711.0,0.01111693]
[1721716438703,0.02703405,66712.0,66711.0,0.16101693]
[1721716440103,0.02703405,66712.0,66711.0,0.01111693]
[1721716440673,0.02703405,66712.0,66711.0,0.16101693]
[1721716440870,0.02705397,66712.0,66711.0,0.16101693]
[1721716441497,1.03785702,66712.0,66711.0,0.01111693]
[1721716441699,1.10148685,66712.0,66711.0,0.01111693]
[1721716441911,1.12391635,66712.0,66711.0,0.008]
[1721716442475,1.03419836,66712.0,66711.0,0.008]
[1721716442708,1.18116101,66712.0,66711.0,0.008]
[1721716443306,1.27088471,66712.0,66711.0,0.008]
[1721716443440,1.23685515,66712.0,66711.0,0.008]
[1721716443625,1.27106486,66712.0,66711.0,0.008]
[1721716444268,1.18134116,66712.0,66711.0,0.008]
[1721716444867,1.27107433,66712.0,66711.0,0.008]
[1721716445243,1.18134116,66712.0,66711.0,0.008]
[1721716446102,1.27107683,66712.0,66711.0,0.008]
[1721716446342,1.18134116,66712.0,66711.0,0.008]
[1721716446735,1.18134359,66712.0,66711.0,0.008]
[1721716446941,0.79434759,66712.0,66711.0,0.008]
[1721716447115,0.60072543,66712.0,66711.0,0.008]
[1721716448758,0.90052143,66712.0,66711.0,0.008]
[1721716449306,0.81078094,66712.0,66711.0,0.008]
[1721716449515,0.81070719,66712.0,66711.0,0.008]
[1721716450118,0.81070687,66712.0,66711.0,0.008]
[1721716450331,0.95637901,66712.0,66711.0,0.008]
[1721716450745,1.04613888,66712.0,66711.0,0.008]
[1721716451452,0.35678701,66712.0,66711.0,0.008]
[1721716451655,0.21111487,66712.0,66711.0,0.008]
[1721716451871,0.06121687,66712.0,66711.0,0.0111357]
[1721716452309,0.09890588,66712.0,66711.0,0.97075561]
[1721716452510,0.054025,66712.0,66711.0,1.04695561]
[1721716452634,0.01993481,66712.0,66711.0,1.04695561]
[1721716453062,0.0199343,66712.0,66711.0,1.04695561]
[1721716453462,0.0199343,66712.0,66711.0,1.47130162]
[1721716453680,0.0199343,66712.0,66711.0,2.23670975]
[1721716453681,0.0189343,66712.0,66711.0,2.23670975]
[1721716453930,0.00284,66712.0,66711.0,2.24270975]
[1721716454119,0.00284,66712.0,66711.0,2.40692339]
[1721716454645,0.00084,66712.0,66711.0,2.09312339]
[1721716454844,0.00184,66712.0,66711.0,1.93490975]
[1721716454995,0.00284,66712.0,66711.0,1.94890975]
[1721716455369,0.00084,66712.0,66711.0,1.92890975]
[1721716455576,0.00184,66712.0,66711.0,1.81036374]
[1721716455776,0.00184,66712.0,66711.0,1.94362817]
[1721716456255,0.00184,66712.0,66711.0,2.25742817]
[1721716456392,0.00184,66712.0,66711.0,2.50762856]
[1721716456795,0.00084,66712.0,66711.0,2.50162856]
[1721716457416,0.00084,66712.0,66711.0,2.80142856]
[1721716457816,0.00184,66712.0,66711.0,2.81542856]
[1721716458273,0.00184,66712.0,66711.0,2.80742856]
[1721716458426,0.00184,66712.0,66711.0,2.65722817]
[1721716458627,0.00284,66712.0,66711.0,2.82169742]
[1721716458948,0.00084,66712.0,66711.0,2.63721511]
[1721716459143,0.44093655,66738.0,66737.0,1.04889]
[1721716459295,0.45796576,66738.0,66737.0,1.33190991]
[1721716459491,0.45796576,66738.0,66737.0,1.33491826]
[1721716459492,0.01702921,66738.0,66737.0,1.33491826]
[1721716459723,0.00719187,66746.0,66738.0,0.002794]
[1721716459925,0.00719187,66747.0,66746.0,0.149821]
[1721716460096,0.00719187,66747.0,66746.0,0.749107]
[1721716460297,0.02422072,66747.0,66746.0,0.75210166]
[1721716460527,0.02422072,66747.0,66746.0,0.15281566]
[1721716460878,0.02422072,66747.0,66746.0,0.45245866]
[1721716461516,0.02412281,66747.0,66746.0,0.45245866]
[1721716461713,0.02512281,66747.0,66746.0,0.45845866]
[1721716462117,0.01793094,66747.0,66746.0,0.90512157]
[1721716462346,0.001,66747.0,66746.0,0.90512157]
[1721716462785,0.001,66747.0,66746.0,0.91712157]
[1721716465975,0.60164887,66747.0,66746.0,0.02099466]
[1721716466194,1.00018104,66747.0,66746.0,0.02099466]
[1721716466398,1.00018104,66747.0,66746.0,0.018]
[1721716466608,0.91814215,66747.0,66746.0,0.018]
[1721716467455,0.149826,66744.0,66738.0,0.149838]
[1721716467721,0.00719187,66740.0,66739.0,0.152631]
[1721716467925,0.00719187,66743.0,66742.0,0.449491]
[1721716468136,0.144,66747.0,66745.0,0.149823]
[1721716468137,0.00719187,66746.0,66745.0,0.149823]
[1721716468336,0.02403615,66746.0,66745.0,0.149823]
[1721716468540,0.02403615,66746.0,66745.0,0.00296995]
[1721716468541,0.00719187,66746.0,66745.0,0.00296995]
[1721716468676,0.02407964,66746.0,66745.0,0.00296995]
[1721716470526,0.02404282,66746.0,66745.0,0.01396995]
[1721716470727,0.02404282,66746.0,66745.0,0.16379295]
[1721716471173,0.02337932,66746.0,66745.0,0.16379295]
[1721716471504,0.02337932,66746.0,66745.0,0.01396995]
[1721716471704,0.02437932,66746.0,66745.0,0.01896995]
[1721716471911,0.02437932,66746.0,66745.0,0.00796995]
[1721716472113,0.02337932,66746.0,66745.0,0.00296995]
[1721716472255,0.02337932,66746.0,66745.0,0.01496995]
[1721716472455,0.02337932,66746.0,66745.0,0.01996995]
[1721716472456,0.02437932,66746.0,66745.0,0.01996995]
[1721716474122,0.02435305,66746.0,66745.0,0.01996995]
[1721716476612,0.00752837,66746.0,66745.0,0.01996995]
[1721716476775,0.0243548,66746.0,66745.0,0.01996995]
[1721716477026,0.4738188,66746.0,66745.0,0.01996995]
[1721716477252,0.8397618,66746.0,66745.0,0.017]
[1721716477513,1.3174048,66746.0,66745.0,0.017]
[1721716477749,1.6670478,66746.0,66745.0,0.017]
[1721716478012,1.6670478,66746.0,66724.0,0.060051]
[1721716478013,0.078,66728.0,66724.0,0.060051]
[1721716478236,0.078,66728.0,66725.0,0.00586414]
[1721716478237,0.00652837,66726.0,66725.0,0.00586414]
[1721716478481,0.00652837,66726.0,66725.0,0.45267514]
[1721716478482,0.01682643,66726.0,66725.0,0.45267514]
[1721716478710,0.00652837,66731.0,66727.0,0.149862]
[1721716478945,0.00652837,66729.0,66728.0,0.0058637]
[1721716479160,0.02326657,66729.0,66728.0,0.0030697]
[1721716479811,0.00652837,66725.0,66724.0,0.449612]
[1721716480067,0.0656,66732.0,66725.0,0.449603]
[1721716480068,0.00652837,66726.0,66725.0,0.449603]
[1721716480328,0.0778,66733.0,66725.0,0.449603]
[1721716480329,0.00652837,66729.0,66725.0,0.44675691]
[1721716480585,0.01671592,66728.0,66726.0,0.29688591]
[1721716480833,0.01671592,66728.0,66727.0,0.01]
[1721716481075,0.01671592,66728.0,66727.0,0.15008976]
[1721716482295,0.01771592,66728.0,66727.0,0.15508976]
[1721716482822,0.16747787,66728.0,66727.0,0.15508976]
[1721716483112,0.88970646,66728.0,66727.0,0.00806985]
[1721716483348,1.2488967,66728.0,66727.0,0.00806985]
[1721716483601,0.14988,66720.0,66713.0,0.29979]
[1721716483840,0.17302724,66719.0,66714.0,0.30282621]
[1721716484090,0.01661587,66718.0,66715.0,0.14989]
[1721716484329,0.01661587,66718.0,66714.0,0.15293321]
[1721716484330,0.01661587,66718.0,66716.0,0.14701991]
[1721716484603,0.16650087,66718.0,66716.0,0.15013891]
[1721716484845,0.01661587,66717.0,66716.0,0.15013891]
[1721716485649,0.01660812,66717.0,66716.0,0.15013891]
[1721716486142,0.01660812,66717.0,66716.0,0.003119]
[1721716486143,0.87673762,66717.0,66716.0,0.003119]
[1721716486612,0.149911,66706.0,66702.0,0.14992]
[1721716486838,0.149911,66706.0,66703.0,0.14701991]
[1721716487064,0.15643737,66707.0,66703.0,0.1501614]
[1721716487299,0.15643737,66707.0,66704.0,0.002794]
[1721716487534,0.149913,66706.0,66705.0,0.14701991]
[1721716487702,0.00652837,66707.0,66705.0,0.1501611]
[1721716487942,0.149911,66706.0,66705.0,0.1501611]
[1721716488943,0.00652837,66707.0,66705.0,0.1501611]
[1721716489139,0.149911,66706.0,66705.0,0.1501611]
[1721716489565,0.00652837,66707.0,66705.0,0.1501611]
[1721716490043,0.00752837,66707.0,66706.0,0.002794]
[1721716490265,0.00752837,66707.0,66706.0,0.00314104]
[1721716491156,0.00652837,66707.0,66706.0,0.00314104]
[1721716491439,0.00752837,66707.0,66706.0,0.00814104]
[1721716491959,0.001,66707.0,66706.0,0.15805204]
[1721716492175,0.001,66707.0,66706.0,1.34964095]
[1721716492374,0.001,66707.0,66706.0,1.38664095]
[1721716492580,0.001,66707.0,66706.0,1.08681795]
[1721716495893,0.001,66707.0,66706.0,1.08774195]
[1721716497999,0.001,66707.0,66706.0,0.31999595]
[1721716498414,0.001,66707.0,66706.0,0.61981895]
[1721716500506,0.001,66707.0,66706.0,0.91964195]
[1721716500701,0.001,66707.0,66706.0,0.98234195]
[1721716500907,0.001,66707.0,66706.0,1.00534195]
[1721716502351,0.001,66707.0,66706.0,1.30516495]
[1721716502499,0.001,66707.0,66706.0,1.38146495]
[1721716507336,0.001,66707.0,66706.0,1.72475958]
[1721716507491,0.001,66707.0,66706.0,1.82475958]
[1721716508117,0.001,66707.0,66706.0,1.72475958]
[1721716508516,0.001,66707.0,66706.0,1.82475958]
[1721716508976,0.00652837,66733.0,66714.0,0.1425]
[1721716509095,0.00084,66749.0,66745.0,0.342323]
[1721716509295,0.00084,66749.0,66745.0,1.041617]
[1721716509495,0.00084,66749.0,66745.0,1.66730404]
[1721716509719,0.00084,66749.0,66745.0,1.96695104]
[1721716509902,0.00084,66749.0,66745.0,1.78985171]
[1721716511147,0.00084,66749.0,66745.0,1.84131864]
[1721716511516,0.00084,66749.0,66745.0,1.78985171]
[1721716511892,0.00084,66749.0,66745.0,1.72832395]
[1721716512149,0.00084,66749.0,66745.0,1.81432395]
[1721716512353,0.00084,66749.0,66745.0,1.71432395]
[1721716512559,0.00084,66749.0,66745.0,1.82832395]
[1721716513185,0.00084,66749.0,66745.0,1.84232395]
[1721716513375,0.00084,66749.0,66745.0,1.98076523]
[1721716513376,0.00184,66746.0,66745.0,1.98076523]
[1721716513824,0.00084,66746.0,66745.0,2.58431223]
[1721716514027,0.00084,66749.0,66748.0,1.198719]
[1721716514242,0.00084,66749.0,66748.0,1.59318019]
[1721716514442,0.00084,66749.0,66748.0,1.89596684]
[1721716515083,0.00084,66749.0,66748.0,2.19560084]
[1721716515299,0.00084,66749.0,66748.0,1.89596684]
[1721716515711,0.00084,66749.0,66748.0,1.77152556]
[1721716516067,0.00084,66749.0,66748.0,1.78552556]
[1721716516248,0.00084,66749.0,66748.0,1.77152556]
[1721716516676,0.00084,66749.0,66748.0,1.78552556]
[1721716517665,0.00084,66749.0,66748.0,2.09915956]
[1721716517666,0.00184,66749.0,66748.0,2.09915956]
[1721716518043,0.00184,66749.0,66748.0,2.08515956]
[1721716518411,0.00184,66749.0,66748.0,2.09915956]
[1721716518623,0.00084,66749.0,66748.0,2.08515956]
[1721716518981,0.00184,66749.0,66748.0,2.09915956]
[1721716519185,0.00184,66749.0,66748.0,2.2857929]
[1721716519383,0.00184,66749.0,66748.0,2.3668929]
[1721716520460,0.00084,66749.0,66748.0,2.3528929]
[1721716520664,0.00084,66749.0,66748.0,2.3668929]
[1721716520861,0.00184,66749.0,66748.0,2.3668929]
[1721716521082,0.00184,66749.0,66748.0,1.89282556]
[1721716521294,0.00184,66749.0,66748.0,1.94282556]
[1721716524872,0.00184,66749.0,66748.0,2.06725754]
[1721716525092,0.00184,66749.0,66748.0,1.94282556]
[1721716525281,0.00184,66749.0,66748.0,2.06725771]
[1721716525708,0.00184,66749.0,66748.0,1.94282556]
[1721716525914,0.00184,66749.0,66748.0,2.06725499]
[1721716528247,0.00184,66749.0,66748.0,1.64952556]
[1721716528466,0.00184,66749.0,66748.0,1.22689156]
[1721716529313,0.00084,66749.0,66748.0,1.19889156]
[1721716529743,0.00084,66749.0,66748.0,1.23589156]
[1721716530677,0.00184,66749.0,66748.0,1.24989156]
[1721716531058,0.00184,66749.0,66748.0,1.23589156]
[1721716531350,0.00184,66749.0,66748.0,1.24989156]
[1721716531693,0.00084,66749.0,66748.0,1.22189156]
[1721716532122,0.00184,66749.0,66748.0,1.24989156]
[1721716532538,0.00184,66749.0,66748.0,1.23589156]
[1721716532707,0.00184,66749.0,66748.0,1.24989156]
[1721716533582,0.00184,66749.0,66748.0,1.69952556]
[1721716533801,0.00184,66749.0,66748.0,1.82527164]
[1721716533802,0.00084,66749.0,66748.0,1.82527164]
[1721716534095,0.00184,66749.0,66748.0,1.88927164]
[1721716534302,0.00184,66749.0,66748.0,1.58963516]
[1721716534413,0.00184,66749.0,66748.0,1.53963516]
[1721716534795,0.00184,66749.0,66748.0,1.83926916]
[1721716534987,0.00184,66749.0,66748.0,1.58963516]
[1721716535193,0.00184,66749.0,66748.0,1.88926916]
[1721716535396,0.00184,66749.0,66748.0,1.58963516]
[1721716535733,0.00184,66749.0,66748.0,1.88926916]
[1721716537267,0.00184,66749.0,66748.0,1.88926781]
[1721716537464,0.00184,66749.0,66748.0,2.06579292]
[1721716537672,0.00184,66749.0,66748.0,1.76482556]
[1721716537896,0.00184,66749.0,66748.0,2.06570822]
[1721716538329,0.00184,66749.0,66748.0,2.12573122]
[1721716539192,0.00184,66749.0,66748.0,2.07573122]
[1721716539404,0.00184,66749.0,66748.0,1.66079722]
[1721716540210,0.00184,66749.0,66748.0,2.01057967]
[1721716540615,0.00184,66749.0,66748.0,1.96057967]
[1721716540863,0.00184,66749.0,66748.0,2.01057967]
[1721716546199,0.00184,66749.0,66748.0,1.71094567]
[1721716546336,0.00184,66749.0,66748.0,1.66094567]
[1721716546694,0.00184,66749.0,66748.0,1.66070549]
[1721716546891,0.00184,66749.0,66748.0,1.71070549]
[1721716547959,0.00184,66749.0,66748.0,2.01033949]
[1721716548159,0.00184,66749.0,66748.0,1.66070549]
[1721716549007,0.08084,66749.0,66748.0,1.61070549]
[1721716549569,0.08084,66749.0,66748.0,1.61120512]
[1721716549974,0.00184,66749.0,66748.0,1.66168076]
[1721716550795,0.00184,66749.0,66748.0,1.76168076]
[1721716550992,0.00184,66749.0,66748.0,2.01131476]
[1721716551434,0.00184,66749.0,66748.0,2.01136168]
[1721716551820,0.00184,66749.0,66748.0,2.01138622]
[1721716552706,0.00184,66749.0,66748.0,2.01140117]
[1721716554467,0.00184,66749.0,66748.0,2.06140117]
[1721716555280,0.00184,66749.0,66748.0,2.01140117]
[1721716555680,0.00184,66749.0,66748.0,1.75954856]
[1721716555885,0.00184,66749.0,66748.0,2.06128858]
[1721716556087,0.00184,66749.0,66748.0,2.01128858]
[1721716556713,0.00184,66749.0,66748.0,2.06128858]
[1721716558813,0.00184,66749.0,66748.0,1.70954856]
[1721716558965,0.00184,66749.0,66748.0,2.01087415]
[1721716559554,0.00184,66749.0,66748.0,1.96087415]
[1721716559953,0.00184,66749.0,66748.0,2.06087415]
[1721716560430,0.00184,66749.0,66748.0,2.20417415]
[1721716561187,0.00184,66749.0,66748.0,2.20342358]
[1721716561642,0.00184,66749.0,66748.0,2.20338987]
[1721716563810,0.00184,66749.0,66748.0,2.12148987]
[1721716564210,0.00184,66749.0,66748.0,1.77094856]
[1721716564377,0.00184,66749.0,66748.0,2.07175295]
[1721716564580,0.00184,66749.0,66748.0,2.01035295]
[1721716564791,0.00184,66749.0,66748.0,1.96035295]
[1721716565137,0.00184,66749.0,66748.0,2.01035295]
[1721716565392,0.00184,66749.0,66748.0,1.66071895]
[1721716565583,0.00184,66749.0,66748.0,1.71071895]
[1721716565788,0.00184,66749.0,66748.0,2.01035295]
[1721716567388,0.00184,66749.0,66748.0,2.01071863]
[1721716568447,0.00184,66749.0,66748.0,2.06071863]
[1721716569110,0.00184,66749.0,66748.0,1.96071863]
[1721716569351,0.00184,66749.0,66748.0,2.06071863]
[1721716569988,0.00184,66749.0,66748.0,2.60385263]
[1721716570664,0.00184,66749.0,66748.0,3.10357954]
[1721716570863,0.00084,66749.0,66748.0,3.08957954]
[1721716571084,0.00084,66749.0,66748.0,2.92004291]
[1721716571292,0.00184,66749.0,66748.0,2.93404291]
[1721716571499,0.00184,66749.0,66748.0,2.94804291]
[1721716572644,0.00184,66749.0,66748.0,2.93404291]
[1721716572645,0.00084,66749.0,66748.0,2.93404291]
[1721716572883,0.00084,66749.0,66748.0,2.94804291]
[1721716573347,0.00084,66749.0,66748.0,2.64686534]
[1721716573554,0.00084,66749.0,66748.0,2.94828745]
[1721716573769,0.00084,66749.0,66748.0,2.60231256]
[1721716573988,0.00084,66749.0,66748.0,2.90372228]
[1721716575640,0.00084,66749.0,66748.0,2.80372228]
[1721716575842,0.00084,66749.0,66748.0,2.90372228]
[1721716576249,0.00084,66749.0,66748.0,2.89072228]
[1721716576463,0.00084,66749.0,66748.0,2.99056975]
[1721716576673,0.00084,66749.0,66748.0,3.04609946]